[Event "Titled Tuesday Blitz December 27 Late 2022"]
[White "Domingo Nunez, Ruben"]
[Black "Martinez Reyes, Pedro Ramon"]
[WhiteFideId "22245570"]
[BlackFideId "3901807"]
[WhiteElo "2416"]
[BlackElo "2376"]
[Result "1-0"]
[Round "08"]
[TimeControl "180+2"]
[Date "2022.12.27"]
[WhiteClock "0:00:46"]
[BlackClock "0:01:14"]

1. e4 {[%clk 0:02:58]}  Nf6 {[%clk 0:02:56]} 2. e5 {[%clk 0:02:58]}  Ng8 {[%clk 0:02:57]} 3. Nc3 {[%clk 0:02:59]}  d6 {[%clk 0:02:57]} 4. f4 {[%clk 0:03:00]}  Bf5 {[%clk 0:02:54]} 5. g4 {[%clk 0:02:55]}  Bc8 {[%clk 0:02:53]} 6. d4 {[%clk 0:02:55]}  h5 {[%clk 0:02:45]} 7. g5 {[%clk 0:02:55]}  Bg4 {[%clk 0:02:41]} 8. Be2 {[%clk 0:02:53]}  Bxe2 {[%clk 0:02:40]} 9. Qxe2 {[%clk 0:02:54]}  c6 {[%clk 0:02:32]} 10. g6 {[%clk 0:02:38]}  f6 {[%clk 0:02:16]} 11. Nf3 {[%clk 0:02:31]}  d5 {[%clk 0:02:12]} 12. exf6 {[%clk 0:02:16]}  Nxf6 {[%clk 0:02:07]} 13. Qe6 {[%clk 0:02:16]}  Qd6 {[%clk 0:01:53]} 14. Qf7+ {[%clk 0:02:15]}  Kd8 {[%clk 0:01:44]} 15. Ng5 {[%clk 0:02:12]}  Kd7 {[%clk 0:01:34]} 16. Bd2 {[%clk 0:02:01]}  Na6 {[%clk 0:01:34]} 17. O-O-O {[%clk 0:02:00]}  Nc7 {[%clk 0:01:35]} 18. Rde1 {[%clk 0:01:57]}  Re8 {[%clk 0:01:32]} 19. f5 {[%clk 0:01:28]}  h4 {[%clk 0:01:25]} 20. Rhf1 {[%clk 0:01:28]}  Qxh2 {[%clk 0:01:21]} 21. Bf4 {[%clk 0:01:28]}  Qg2 {[%clk 0:01:13]} 22. Ne6 {[%clk 0:00:45]}  Nxe6 {[%clk 0:01:13]} 23. Qxe6+ {[%clk 0:00:45]}  Kd8 {[%clk 0:01:14]} 24. Qe5 {[%clk 0:00:46]} 1-0


[Site "https://www.chess.com"]

[Event "Titled Tuesday Blitz December 27 Late 2022"]
[White "Ezat, Mohamed"]
[Black "Pershin, Denis"]
[WhiteFideId "10600906"]
[BlackFideId "24165506"]
[WhiteElo "2402"]
[BlackElo "2366"]
[Result "0-1"]
[Round "08"]
[TimeControl "180+2"]
[Date "2022.12.27"]
[WhiteClock "0:01:07"]
[BlackClock "0:00:29"]

1. d4 {[%clk 0:03:00]}  d5 {[%clk 0:02:58]} 2. c4 {[%clk 0:03:01]}  c6 {[%clk 0:02:58]} 3. Nc3 {[%clk 0:03:01]}  dxc4 {[%clk 0:02:57]} 4. e4 {[%clk 0:03:00]}  b5 {[%clk 0:02:51]} 5. a4 {[%clk 0:03:00]}  b4 {[%clk 0:02:50]} 6. Na2 {[%clk 0:03:00]}  Nf6 {[%clk 0:02:37]} 7. e5 {[%clk 0:03:00]}  Nd5 {[%clk 0:02:38]} 8. Bxc4 {[%clk 0:02:59]}  Bf5 {[%clk 0:02:36]} 9. Nf3 {[%clk 0:02:55]}  e6 {[%clk 0:02:37]} 10. O-O {[%clk 0:02:53]}  Be7 {[%clk 0:02:38]} 11. Bd2 {[%clk 0:02:52]}  a5 {[%clk 0:02:37]} 12. Nc1 {[%clk 0:02:51]}  O-O {[%clk 0:02:36]} 13. Nb3 {[%clk 0:02:50]}  Nd7 {[%clk 0:02:36]} 14. Rc1 {[%clk 0:02:49]}  N7b6 {[%clk 0:02:35]} 15. Be2 {[%clk 0:02:33]}  Nxa4 {[%clk 0:02:32]} 16. Rxc6 {[%clk 0:02:31]}  Nxb2 {[%clk 0:02:26]} 17. Qa1 {[%clk 0:02:22]}  a4 {[%clk 0:02:19]} 18. Qxb2 {[%clk 0:02:20]}  axb3 {[%clk 0:02:20]} 19. Qxb3 {[%clk 0:02:19]}  Ra3 {[%clk 0:02:20]} 20. Qb2 {[%clk 0:02:18]}  Qa8 {[%clk 0:02:21]} 21. Rfc1 {[%clk 0:02:13]}  Ra2 {[%clk 0:02:20]} 22. Qb3 {[%clk 0:02:13]}  Be4 {[%clk 0:02:14]} 23. Bc4 {[%clk 0:01:47]}  Ra3 {[%clk 0:01:57]} 24. Bxd5 {[%clk 0:01:28]}  Bxd5 {[%clk 0:01:58]} 25. Qc2 {[%clk 0:01:27]}  Bxc6 {[%clk 0:01:57]} 26. Qxc6 {[%clk 0:01:27]}  Qxc6 {[%clk 0:01:51]} 27. Rxc6 {[%clk 0:01:27]}  Ra1+ {[%clk 0:01:47]} 28. Ne1 {[%clk 0:01:26]}  Rd8 {[%clk 0:01:40]} 29. Kf1 {[%clk 0:01:20]}  Rxd4 {[%clk 0:01:35]} 30. Ke2 {[%clk 0:01:20]}  b3 {[%clk 0:00:57]} 31. Rb6 {[%clk 0:01:17]}  Ra2 {[%clk 0:00:51]} 32. Nf3 {[%clk 0:01:16]}  Rb4 {[%clk 0:00:42]} 33. Rxb4 {[%clk 0:01:14]}  Bxb4 {[%clk 0:00:43]} 34. Kd3 {[%clk 0:01:14]}  b2 {[%clk 0:00:37]} 35. Kc2 {[%clk 0:01:09]}  b1=Q+ {[%clk 0:00:33]} 36. Kxb1 {[%clk 0:01:09]}  Rxd2 {[%clk 0:00:34]} 37. Nxd2 {[%clk 0:01:08]}  Bxd2 {[%clk 0:00:35]} 38. g3 {[%clk 0:01:08]}  Be1 {[%clk 0:00:27]} 39. f4 {[%clk 0:01:07]}  Bf2 {[%clk 0:00:28]} 40. Kc2 {[%clk 0:01:07]}  Bg1 {[%clk 0:00:29]} 0-1


[Site "https://www.chess.com"]

[Event "Titled Tuesday Blitz December 27 Late 2022"]
[White "Fernandez Hernandez, Gerardo"]
[Black "Li, Hui"]
[WhiteFideId "2207400"]
[BlackFideId "15400310"]
[WhiteElo "2181"]
[BlackElo "1963"]
[Result "1-0"]
[Round "08"]
[TimeControl "180+2"]
[Date "2022.12.27"]
[WhiteClock "0:00:20"]
[BlackClock "0:00:07"]

1. e4 {[%clk 0:03:00]}  e5 {[%clk 0:02:59]} 2. Nf3 {[%clk 0:03:00]}  Nf6 {[%clk 0:02:58]} 3. Nc3 {[%clk 0:02:59]}  Nc6 {[%clk 0:02:49]} 4. d4 {[%clk 0:02:57]}  exd4 {[%clk 0:02:48]} 5. Nxd4 {[%clk 0:02:57]}  Bb4 {[%clk 0:02:49]} 6. Nxc6 {[%clk 0:02:57]}  bxc6 {[%clk 0:02:47]} 7. Bd3 {[%clk 0:02:58]}  O-O {[%clk 0:02:40]} 8. O-O {[%clk 0:02:56]}  d5 {[%clk 0:02:36]} 9. exd5 {[%clk 0:02:57]}  cxd5 {[%clk 0:02:37]} 10. h3 {[%clk 0:02:57]}  c6 {[%clk 0:01:43]} 11. Qf3 {[%clk 0:02:55]}  Bd6 {[%clk 0:01:43]} 12. Bg5 {[%clk 0:02:32]}  Rb8 {[%clk 0:01:42]} 13. b3 {[%clk 0:02:26]}  Be5 {[%clk 0:01:35]} 14. Bd2 {[%clk 0:02:19]}  Be6 {[%clk 0:01:27]} 15. Rfe1 {[%clk 0:02:13]}  Bd6 {[%clk 0:01:26]} 16. Rad1 {[%clk 0:01:57]}  Qc7 {[%clk 0:01:21]} 17. Ne2 {[%clk 0:01:37]}  Nd7 {[%clk 0:01:18]} 18. Bf4 {[%clk 0:01:28]}  Ne5 {[%clk 0:01:14]} 19. Qg3 {[%clk 0:01:17]}  Rbd8 {[%clk 0:01:13]} 20. Qh4 {[%clk 0:01:11]}  Ng6 {[%clk 0:01:10]} 21. Bxd6 {[%clk 0:01:10]}  Qxd6 {[%clk 0:01:10]} 22. Bxg6 {[%clk 0:01:10]}  hxg6 {[%clk 0:01:08]} 23. Nd4 {[%clk 0:01:05]}  Bf5 {[%clk 0:00:50]} 24. c4 {[%clk 0:00:59]}  dxc4 {[%clk 0:00:41]} 25. Nxf5 {[%clk 0:00:50]}  g5 {[%clk 0:00:11]} 26. Qxg5 {[%clk 0:00:45]}  Qf6 {[%clk 0:00:11]} 27. Qxf6 {[%clk 0:00:29]}  gxf6 {[%clk 0:00:12]} 28. bxc4 {[%clk 0:00:26]}  Kh7 {[%clk 0:00:10]} 29. Ne7 {[%clk 0:00:23]}  Rfe8 {[%clk 0:00:08]} 30. Rxd8 {[%clk 0:00:22]}  Rxd8 {[%clk 0:00:08]} 31. Nxc6 {[%clk 0:00:22]}  Rd2 {[%clk 0:00:09]} 32. a4 {[%clk 0:00:21]}  a6 {[%clk 0:00:09]} 33. a5 {[%clk 0:00:21]}  Rc2 {[%clk 0:00:08]} 34. Re4 {[%clk 0:00:21]}  f5 {[%clk 0:00:07]} 35. Rf4 {[%clk 0:00:21]}  Kg6 {[%clk 0:00:08]} 36. g3 {[%clk 0:00:21]}  Kf6 {[%clk 0:00:07]} 37. Kg2 {[%clk 0:00:21]}  Ke6 {[%clk 0:00:07]} 38. Nd4+ {[%clk 0:00:20]} 1-0


[Site "https://www.chess.com"]

[Event "Titled Tuesday Blitz December 27 Late 2022"]
[White "Fiorito, Joaquin"]
[Black "Liu, Casper"]
[WhiteFideId "180173"]
[BlackFideId "1454153"]
[WhiteElo "2405"]
[BlackElo "2278"]
[Result "0-1"]
[Round "08"]
[TimeControl "180+2"]
[Date "2022.12.27"]
[WhiteClock "0:00:09"]
[BlackClock "0:00:55"]

1. d4 {[%clk 0:03:00]}  f5 {[%clk 0:02:54]} 2. Nc3 {[%clk 0:03:00]}  Nf6 {[%clk 0:02:55]} 3. Bf4 {[%clk 0:02:59]}  g6 {[%clk 0:02:53]} 4. h4 {[%clk 0:02:58]}  d6 {[%clk 0:02:52]} 5. h5 {[%clk 0:02:56]}  Bg7 {[%clk 0:02:45]} 6. h6 {[%clk 0:02:51]}  Bf8 {[%clk 0:02:45]} 7. e3 {[%clk 0:02:50]}  Be6 {[%clk 0:02:42]} 8. Nf3 {[%clk 0:02:45]}  Nbd7 {[%clk 0:02:40]} 9. Ng5 {[%clk 0:02:33]}  Bg8 {[%clk 0:02:40]} 10. d5 {[%clk 0:02:34]}  Ng4 {[%clk 0:02:34]} 11. Qd4 {[%clk 0:02:03]}  Nde5 {[%clk 0:02:05]} 12. f3 {[%clk 0:01:52]}  Nf6 {[%clk 0:01:52]} 13. Bxe5 {[%clk 0:01:42]}  dxe5 {[%clk 0:01:53]} 14. Qxe5 {[%clk 0:01:43]}  Qd6 {[%clk 0:01:45]} 15. Qd4 {[%clk 0:01:34]}  Qg3+ {[%clk 0:01:40]} 16. Kd2 {[%clk 0:01:13]}  Qxg5 {[%clk 0:01:41]} 17. f4 {[%clk 0:01:12]}  Qg3 {[%clk 0:01:38]} 18. Be2 {[%clk 0:01:12]}  Rd8 {[%clk 0:01:32]} 19. Bf3 {[%clk 0:01:02]}  Qf2+ {[%clk 0:01:18]} 20. Ne2 {[%clk 0:00:58]}  Bxd5 {[%clk 0:01:15]} 21. Raf1 {[%clk 0:00:34]}  Qxf1 {[%clk 0:01:15]} 22. Rxf1 {[%clk 0:00:23]}  Bxf3 {[%clk 0:01:15]} 23. Qxd8+ {[%clk 0:00:19]}  Kxd8 {[%clk 0:01:16]} 24. gxf3 {[%clk 0:00:18]}  Bxh6 {[%clk 0:01:16]} 25. Nd4 {[%clk 0:00:18]}  Kd7 {[%clk 0:01:13]} 26. c4 {[%clk 0:00:18]}  c6 {[%clk 0:01:13]} 27. Nb3 {[%clk 0:00:18]}  Rd8 {[%clk 0:01:12]} 28. Ke2 {[%clk 0:00:18]}  b6 {[%clk 0:01:11]} 29. c5 {[%clk 0:00:16]}  Nd5 {[%clk 0:01:09]} 30. Rh1 {[%clk 0:00:15]}  Bg7 {[%clk 0:01:09]} 31. Rxh7 {[%clk 0:00:15]}  Bxb2 {[%clk 0:01:10]} 32. a4 {[%clk 0:00:14]}  Rh8 {[%clk 0:01:09]} 33. Rf7 {[%clk 0:00:14]}  Rh2+ {[%clk 0:01:08]} 34. Kd3 {[%clk 0:00:14]}  Rh8 {[%clk 0:01:00]} 35. Nd4 {[%clk 0:00:10]}  bxc5 {[%clk 0:00:56]} 36. Nb3 {[%clk 0:00:09]}  Ke8 {[%clk 0:00:55]} 0-1


[Site "https://www.chess.com"]

[Event "Titled Tuesday Blitz December 27 Late 2022"]
[White "Fisher_TheGalactic"]
[Black "Fishbein, Alexander"]
[BlackFideId "2000377"]
[WhiteElo "2477"]
[BlackElo "2366"]
[Result "0-1"]
[Round "08"]
[TimeControl "180+2"]
[Date "2022.12.27"]
[WhiteClock "0:00:33"]
[BlackClock "0:00:35"]

1. Nf3 {[%clk 0:03:00]}  d5 {[%clk 0:02:57]} 2. g3 {[%clk 0:03:00]}  c6 {[%clk 0:02:56]} 3. Bg2 {[%clk 0:03:00]}  Bg4 {[%clk 0:02:56]} 4. O-O {[%clk 0:03:00]}  e6 {[%clk 0:02:56]} 5. d3 {[%clk 0:03:00]}  Nf6 {[%clk 0:02:55]} 6. Nbd2 {[%clk 0:03:01]}  Be7 {[%clk 0:02:54]} 7. e4 {[%clk 0:03:01]}  O-O {[%clk 0:02:49]} 8. h3 {[%clk 0:03:01]}  Bxf3 {[%clk 0:02:48]} 9. Qxf3 {[%clk 0:03:01]}  Nbd7 {[%clk 0:02:47]} 10. Qe2 {[%clk 0:03:01]}  dxe4 {[%clk 0:02:43]} 11. dxe4 {[%clk 0:03:02]}  e5 {[%clk 0:02:40]} 12. Nc4 {[%clk 0:03:00]}  b5 {[%clk 0:02:37]} 13. Ne3 {[%clk 0:02:58]}  Bc5 {[%clk 0:02:36]} 14. Nf5 {[%clk 0:02:51]}  g6 {[%clk 0:02:33]} 15. Nh4 {[%clk 0:02:48]}  Nh5 {[%clk 0:02:30]} 16. Bh6 {[%clk 0:02:46]}  Re8 {[%clk 0:02:28]} 17. Qf3 {[%clk 0:02:37]}  Qf6 {[%clk 0:02:26]} 18. Qxf6 {[%clk 0:02:30]}  Ndxf6 {[%clk 0:02:25]} 19. Kh2 {[%clk 0:02:27]}  Rad8 {[%clk 0:02:13]} 20. Bf3 {[%clk 0:02:27]}  Ng7 {[%clk 0:02:02]} 21. Kg2 {[%clk 0:02:23]}  Ne6 {[%clk 0:02:01]} 22. Rad1 {[%clk 0:02:17]}  Nd4 {[%clk 0:01:40]} 23. c3 {[%clk 0:02:14]}  Nxf3 {[%clk 0:01:40]} 24. Nxf3 {[%clk 0:02:14]}  Nxe4 {[%clk 0:01:38]} 25. Rxd8 {[%clk 0:02:13]}  Rxd8 {[%clk 0:01:38]} 26. Nxe5 {[%clk 0:02:14]}  g5 {[%clk 0:01:29]} 27. Nf3 {[%clk 0:01:28]}  f6 {[%clk 0:01:26]} 28. h4 {[%clk 0:01:28]}  g4 {[%clk 0:01:16]} 29. Nd4 {[%clk 0:01:12]}  Bxd4 {[%clk 0:01:14]} 30. cxd4 {[%clk 0:01:12]}  Rxd4 {[%clk 0:01:13]} 31. Be3 {[%clk 0:01:13]}  Rc4 {[%clk 0:01:08]} 32. Rd1 {[%clk 0:01:09]}  Kf7 {[%clk 0:01:05]} 33. Rd7+ {[%clk 0:01:09]}  Kg6 {[%clk 0:00:59]} 34. Rxa7 {[%clk 0:01:06]}  Rc2 {[%clk 0:00:58]} 35. b3 {[%clk 0:01:04]}  b4 {[%clk 0:00:58]} 36. a3 {[%clk 0:00:46]}  bxa3 {[%clk 0:00:56]} 37. Rxa3 {[%clk 0:00:47]}  h5 {[%clk 0:00:56]} 38. Ra6 {[%clk 0:00:43]}  Kf5 {[%clk 0:00:53]} 39. b4 {[%clk 0:00:41]}  Kg6 {[%clk 0:00:47]} 40. Bc5 {[%clk 0:00:34]}  Nxc5 {[%clk 0:00:45]} 41. Rxc6 {[%clk 0:00:33]}  Nd3 {[%clk 0:00:44]} 42. Rxc2 {[%clk 0:00:27]}  Ne1+ {[%clk 0:00:44]} 43. Kf1 {[%clk 0:00:28]}  Nxc2 {[%clk 0:00:45]} 44. b5 {[%clk 0:00:28]}  Nd4 {[%clk 0:00:44]} 45. b6 {[%clk 0:00:29]}  Nc6 {[%clk 0:00:45]} 46. Ke2 {[%clk 0:00:30]}  Kf5 {[%clk 0:00:43]} 47. Kd3 {[%clk 0:00:30]}  Ke5 {[%clk 0:00:42]} 48. b7 {[%clk 0:00:30]}  Kd5 {[%clk 0:00:41]} 49. Ke3 {[%clk 0:00:31]}  Ke5 {[%clk 0:00:37]} 50. Kd3 {[%clk 0:00:31]}  f5 {[%clk 0:00:37]} 51. Kc4 {[%clk 0:00:31]}  Na5+ {[%clk 0:00:35]} 52. Kd3 {[%clk 0:00:29]}  Nxb7 {[%clk 0:00:36]} 53. Ke3 {[%clk 0:00:30]}  Nd6 {[%clk 0:00:36]} 54. Ke2 {[%clk 0:00:31]}  f4 {[%clk 0:00:35]} 55. Kf1 {[%clk 0:00:32]}  fxg3 {[%clk 0:00:34]} 56. fxg3 {[%clk 0:00:32]}  Nf5 {[%clk 0:00:34]} 57. Kg2 {[%clk 0:00:33]}  Ke4 {[%clk 0:00:35]} 58. Kh2 {[%clk 0:00:33]}  Kf3 {[%clk 0:00:35]} 0-1


[Site "https://www.chess.com"]

[Event "Titled Tuesday Blitz December 27 Late 2022"]
[White "Gahan, M G"]
[Black "Janaszak, Dawid"]
[WhiteFideId "5027373"]
[BlackFideId "1119206"]
[WhiteElo "2247"]
[BlackElo "2316"]
[Result "0-1"]
[Round "08"]
[TimeControl "180+2"]
[Date "2022.12.27"]
[WhiteClock "0:00:16"]
[BlackClock "0:00:08"]

1. e4 {[%clk 0:02:47]}  e5 {[%clk 0:02:58]} 2. Nf3 {[%clk 0:02:47]}  Nc6 {[%clk 0:02:59]} 3. d4 {[%clk 0:02:48]}  exd4 {[%clk 0:02:58]} 4. Nxd4 {[%clk 0:02:48]}  Nf6 {[%clk 0:02:58]} 5. Nc3 {[%clk 0:02:49]}  Bb4 {[%clk 0:02:55]} 6. Nxc6 {[%clk 0:02:49]}  bxc6 {[%clk 0:02:55]} 7. Bd3 {[%clk 0:02:50]}  d5 {[%clk 0:02:53]} 8. exd5 {[%clk 0:02:51]}  Bg4 {[%clk 0:02:53]} 9. f3 {[%clk 0:02:44]}  Bh5 {[%clk 0:02:52]} 10. dxc6 {[%clk 0:02:40]}  Qd4 {[%clk 0:02:27]} 11. Qe2+ {[%clk 0:02:04]}  Kf8 {[%clk 0:02:26]} 12. Be3 {[%clk 0:02:00]}  Bxc3+ {[%clk 0:02:26]} 13. bxc3 {[%clk 0:01:58]}  Qxc3+ {[%clk 0:02:26]} 14. Kf2 {[%clk 0:01:58]}  Re8 {[%clk 0:02:17]} 15. Qd2 {[%clk 0:01:50]}  Qxc6 {[%clk 0:02:07]} 16. Qb4+ {[%clk 0:01:50]}  Kg8 {[%clk 0:01:59]} 17. Bxa7 {[%clk 0:01:48]}  Nd5 {[%clk 0:01:32]} 18. Qb5 {[%clk 0:01:41]}  Qa8 {[%clk 0:01:31]} 19. Bd4 {[%clk 0:01:34]}  Rb8 {[%clk 0:01:21]} 20. Qc5 {[%clk 0:01:28]}  Nf4 {[%clk 0:01:13]} 21. Be4 {[%clk 0:01:23]}  Qa4 {[%clk 0:01:05]} 22. Rhe1 {[%clk 0:01:20]}  Ne6 {[%clk 0:01:05]} 23. Qxh5 {[%clk 0:01:17]}  Qxd4+ {[%clk 0:01:05]} 24. Kf1 {[%clk 0:01:16]}  g5 {[%clk 0:00:52]} 25. Rad1 {[%clk 0:01:12]}  Qc4+ {[%clk 0:00:51]} 26. Kg1 {[%clk 0:01:07]}  Qc5+ {[%clk 0:00:40]} 27. Kh1 {[%clk 0:01:06]}  Nf4 {[%clk 0:00:30]} 28. Qh6 {[%clk 0:01:00]}  Ng6 {[%clk 0:00:16]} 29. Bxg6 {[%clk 0:00:52]}  hxg6 {[%clk 0:00:16]} 30. Qxh8+ {[%clk 0:00:38]}  Kxh8 {[%clk 0:00:17]} 31. Re2 {[%clk 0:00:36]}  Rb2 {[%clk 0:00:16]} 32. Rc1 {[%clk 0:00:34]}  Rxa2 {[%clk 0:00:16]} 33. h3 {[%clk 0:00:33]}  Qa3 {[%clk 0:00:16]} 34. Rd1 {[%clk 0:00:29]}  Qc3 {[%clk 0:00:14]} 35. Rd3 {[%clk 0:00:25]}  Ra1+ {[%clk 0:00:13]} 36. Kh2 {[%clk 0:00:25]}  Qf6 {[%clk 0:00:13]} 37. Re4 {[%clk 0:00:25]}  Qc6 {[%clk 0:00:11]} 38. c4 {[%clk 0:00:20]}  Rc1 {[%clk 0:00:10]} 39. Rdd4 {[%clk 0:00:20]}  Rc2 {[%clk 0:00:10]} 40. Rg4 {[%clk 0:00:20]}  Qf6 {[%clk 0:00:09]} 41. Rde4 {[%clk 0:00:20]}  Qd6+ {[%clk 0:00:08]} 42. Kg1 {[%clk 0:00:19]}  Qd1+ {[%clk 0:00:07]} 43. Kh2 {[%clk 0:00:19]}  Qd2 {[%clk 0:00:07]} 44. Re5 {[%clk 0:00:17]}  f6 {[%clk 0:00:06]} 45. Re7 {[%clk 0:00:17]}  c5 {[%clk 0:00:05]} 46. Ree4 {[%clk 0:00:15]}  f5 {[%clk 0:00:05]} 47. Re8+ {[%clk 0:00:15]}  Kg7 {[%clk 0:00:05]} 48. Rg3 {[%clk 0:00:15]}  Qf4 {[%clk 0:00:05]} 49. Re7+ {[%clk 0:00:15]}  Kf6 {[%clk 0:00:05]} 50. Rd7 {[%clk 0:00:14]}  Ke6 {[%clk 0:00:05]} 51. Rd1 {[%clk 0:00:14]}  g4 {[%clk 0:00:05]} 52. fxg4 {[%clk 0:00:13]}  fxg4 {[%clk 0:00:05]} 53. Re1+ {[%clk 0:00:13]}  Kd7 {[%clk 0:00:05]} 54. Rd1+ {[%clk 0:00:13]}  Kc7 {[%clk 0:00:05]} 55. Rd3 {[%clk 0:00:13]}  gxh3 {[%clk 0:00:05]} 56. Kxh3 {[%clk 0:00:13]}  Qf5+ {[%clk 0:00:05]} 57. Kh2 {[%clk 0:00:13]}  Qh5+ {[%clk 0:00:05]} 58. Rh3 {[%clk 0:00:14]}  Qg5 {[%clk 0:00:05]} 59. Rdg3 {[%clk 0:00:14]}  Qf4 {[%clk 0:00:05]} 60. Rh7+ {[%clk 0:00:14]}  Kc6 {[%clk 0:00:05]} 61. Rg7 {[%clk 0:00:14]}  Qh4+ {[%clk 0:00:04]} 62. Rh3 {[%clk 0:00:14]}  Qf4+ {[%clk 0:00:04]} 63. Rg3 {[%clk 0:00:15]}  Qh6+ {[%clk 0:00:04]} 64. Rh3 {[%clk 0:00:15]}  Qxg7 {[%clk 0:00:05]} 65. Rg3 {[%clk 0:00:14]}  Qe5 {[%clk 0:00:05]} 66. Kh3 {[%clk 0:00:14]}  Qxg3+ {[%clk 0:00:06]} 67. Kxg3 {[%clk 0:00:15]}  Rxc4 {[%clk 0:00:07]} 68. Kf3 {[%clk 0:00:16]}  Rd4 {[%clk 0:00:08]} 0-1


[Site "https://www.chess.com"]

[Event "Titled Tuesday Blitz December 27 Late 2022"]
[White "Garcia, Gabriel Gonzaga"]
[Black "Kaganskiy, Gleb"]
[WhiteFideId "2138956"]
[BlackFideId "4132025"]
[WhiteElo "2091"]
[BlackElo "2205"]
[Result "0-1"]
[Round "08"]
[TimeControl "180+2"]
[Date "2022.12.27"]
[WhiteClock "0:00:45"]
[BlackClock "0:01:42"]

1. e4 {[%clk 0:03:00]}  c5 {[%clk 0:02:55]} 2. Nf3 {[%clk 0:03:01]}  d6 {[%clk 0:02:55]} 3. d4 {[%clk 0:03:01]}  cxd4 {[%clk 0:02:56]} 4. Qxd4 {[%clk 0:03:01]}  Nf6 {[%clk 0:02:54]} 5. Bb5+ {[%clk 0:02:59]}  Bd7 {[%clk 0:02:38]} 6. c4 {[%clk 0:02:58]}  Nc6 {[%clk 0:02:34]} 7. Bxc6 {[%clk 0:02:58]}  bxc6 {[%clk 0:02:29]} 8. Nc3 {[%clk 0:02:59]}  g6 {[%clk 0:02:28]} 9. e5 {[%clk 0:02:58]}  dxe5 {[%clk 0:02:25]} 10. Nxe5 {[%clk 0:02:58]}  Bg7 {[%clk 0:02:25]} 11. O-O {[%clk 0:02:44]}  O-O {[%clk 0:02:23]} 12. Rd1 {[%clk 0:02:39]}  Ng4 {[%clk 0:02:13]} 13. Qxd7 {[%clk 0:02:38]}  Nxe5 {[%clk 0:02:08]} 14. Qb7 {[%clk 0:02:19]}  Qb6 {[%clk 0:02:02]} 15. Qxe7 {[%clk 0:01:09]}  Nxc4 {[%clk 0:01:58]} 16. Qe4 {[%clk 0:00:57]}  Nxb2 {[%clk 0:01:46]} 17. Bxb2 {[%clk 0:00:51]}  Qxb2 {[%clk 0:01:45]} 18. Ne2 {[%clk 0:00:45]}  Rfe8 {[%clk 0:01:42]} 0-1


[Site "https://www.chess.com"]

[Event "Titled Tuesday Blitz December 27 Late 2022"]
[White "Gerbelli Neto, Eduardo"]
[Black "Preotu, Razvan"]
[WhiteFideId "2103281"]
[BlackFideId "2613280"]
[WhiteElo "2114"]
[BlackElo "2475"]
[Result "0-1"]
[Round "08"]
[TimeControl "180+2"]
[Date "2022.12.27"]
[WhiteClock "0:00:09"]
[BlackClock "0:00:34"]

1. e4 {[%clk 0:03:00]}  c5 {[%clk 0:02:59]} 2. Nc3 {[%clk 0:03:00]}  d6 {[%clk 0:03:00]} 3. f4 {[%clk 0:03:01]}  g6 {[%clk 0:02:59]} 4. Nf3 {[%clk 0:03:02]}  Bg7 {[%clk 0:02:59]} 5. Bb5+ {[%clk 0:03:02]}  Bd7 {[%clk 0:02:59]} 6. Bc4 {[%clk 0:03:03]}  Nc6 {[%clk 0:03:00]} 7. O-O {[%clk 0:03:03]}  e6 {[%clk 0:02:54]} 8. d3 {[%clk 0:03:01]}  Nge7 {[%clk 0:02:54]} 9. Qe1 {[%clk 0:02:54]}  O-O {[%clk 0:02:51]} 10. Bb3 {[%clk 0:02:54]}  Na5 {[%clk 0:02:48]} 11. Bd2 {[%clk 0:02:17]}  b5 {[%clk 0:02:28]} 12. Nd1 {[%clk 0:01:42]}  Nec6 {[%clk 0:02:28]} 13. c3 {[%clk 0:01:41]}  Nxb3 {[%clk 0:02:25]} 14. axb3 {[%clk 0:01:42]}  a5 {[%clk 0:02:25]} 15. Ne3 {[%clk 0:01:40]}  f5 {[%clk 0:01:53]} 16. exf5 {[%clk 0:01:18]}  gxf5 {[%clk 0:01:49]} 17. Kh1 {[%clk 0:01:11]}  d5 {[%clk 0:01:44]} 18. Nc2 {[%clk 0:00:49]}  a4 {[%clk 0:01:06]} 19. bxa4 {[%clk 0:00:49]}  bxa4 {[%clk 0:01:07]} 20. d4 {[%clk 0:00:49]}  Qb6 {[%clk 0:01:04]} 21. dxc5 {[%clk 0:00:42]}  Qxc5 {[%clk 0:01:04]} 22. Be3 {[%clk 0:00:35]}  Qb5 {[%clk 0:01:04]} 23. Rb1 {[%clk 0:00:32]}  Qd3 {[%clk 0:00:56]} 24. Ncd4 {[%clk 0:00:30]}  Na5 {[%clk 0:00:56]} 25. Ne5 {[%clk 0:00:27]}  Bxe5 {[%clk 0:00:55]} 26. fxe5 {[%clk 0:00:28]}  Kh8 {[%clk 0:00:55]} 27. Bg5 {[%clk 0:00:27]}  Nc4 {[%clk 0:00:49]} 28. Bf6+ {[%clk 0:00:27]}  Rxf6 {[%clk 0:00:49]} 29. exf6 {[%clk 0:00:28]}  e5 {[%clk 0:00:43]} 30. Rd1 {[%clk 0:00:16]}  Qe4 {[%clk 0:00:43]} 31. Qxe4 {[%clk 0:00:15]}  fxe4 {[%clk 0:00:44]} 32. Nf5 {[%clk 0:00:13]}  Bxf5 {[%clk 0:00:44]} 33. Rxf5 {[%clk 0:00:13]}  Ne3 {[%clk 0:00:45]} 34. Rff1 {[%clk 0:00:10]}  Kg8 {[%clk 0:00:40]} 35. Rde1 {[%clk 0:00:10]}  Nxf1 {[%clk 0:00:40]} 36. Rxf1 {[%clk 0:00:11]}  a3 {[%clk 0:00:40]} 37. bxa3 {[%clk 0:00:10]}  Rxa3 {[%clk 0:00:41]} 38. Rc1 {[%clk 0:00:09]}  e3 {[%clk 0:00:36]} 39. Kg1 {[%clk 0:00:10]}  d4 {[%clk 0:00:35]} 40. cxd4 {[%clk 0:00:09]}  exd4 {[%clk 0:00:36]} 41. Rd1 {[%clk 0:00:09]}  d3 {[%clk 0:00:34]} 0-1


[Site "https://www.chess.com"]